Cogmind - Beta 16 @@@ ROGUE MODE // 2025.11.04 @ 13:06:31 Player: Demo Result: Destroyed by H-88 Terminator with Heavy Machine Gun Performance ------------- Evolutions (8) 4000 Regions Visited (14) 2800 Robots Destroyed (95) 475 Value Destroyed (3936) 3936 Prototype IDs (26) 520 Alien Tech Used (0) 0 Bonus (2762) 2762 TOTAL SCORE: 14493 Bonus ------- High Alert Combat Kills 168 Follower Combat Kills 294 Entered DSFs 500 Registered with UFD 300 Met Optimus in HQ 500 Met Warlord at Base 500 MAIN.C Attacked Warlord 500 Cogmind --------- Core Integrity 0/1450 Matter 290/300 Energy 98/100 System Corruption 9% Temperature Cool (0) Movement Core (50) Location -2/Research Parts ------- > --- POWER (2) -------- (None) > --- PROPULSION (4) --- (None) > --- UTILITY (15) ----- Advanced Coolant Injector Advanced Coolant Injector Advanced Sensor Array Advanced Signal Interpreter Advanced Terrain Scan Processor 0b10 Decoder Chip [Generic] Advanced Melee Analysis Suite Advanced Melee Analysis Suite Advanced Melee Analysis Suite Experimental Armor Integrity Analyzer System Shield > --- WEAPON (2) ------- (None) > --- INVENTORY (5) ---- Enhanced Biometal Leg Enhanced Biometal Leg Centrium Leg Centrium Leg Compact Linear Accelerator Peak State ------------ > --- POWER ------------ Micro Antimatter Reactor Light Quantum Reactor > --- PROPULSION ------- Enhanced Biometal Leg Enhanced Biometal Leg Centrium Wheel Centrium Wheel > --- UTILITY ---------- Experimental Matter Compressor Advanced Terrain Scan Processor Seismic Detector 0b10 Decoder Chip [Generic] Advanced Melee Analysis Suite Advanced Melee Analysis Suite Advanced Target Analyzer Advanced Target Analyzer Advanced Target Analyzer Experimental Armor Integrity Analyzer Quantum Capacitor Centrium Medium Armor Plating Advanced Shield Generator Improved Recalibrator > --- WEAPON ----------- Nova Cannon Compact Linear Accelerator > --- INVENTORY -------- Centrium Leg Advanced Trap Extractor Thermoblaster [Rating: 164] Favorites ----------- Power Reinforced Deuterium Engine Engine Reinforced Deuterium Engine Power Core Neutrino Core Reactor Vortex Chain Reactor Propulsion Wheel Treads Spiked Heavy Treads Leg Carbon-fiber Leg Wheel Wheel Hover Unit Antigrav Array Flight Unit Nuclear Pulse Thruster Utility Advanced Melee Analysis Suite Device Advanced Terrain Scanner Storage Medium Storage Unit Processor Advanced Melee Analysis Suite Hackware System Mapper Protection Makeshift Ablative Armor Weapon Scythe Energy Gun Heavy Laser Energy Cannon Nova Cannon Ballistic Gun Railgun Ballistic Cannon Compact Linear Accelerator Launcher Thermoblaster Impact Weapon Powered Hammer Slashing Weapon Scythe Build | -11 -10 -10 -10 -8 -6 -5 -4 -4 -4 -4 -3 -3 -3 -2 ------- Run | Yrd Mat Min Sub Scr Fac Fac Fac Upp Upp War Pro Res DSF Res Slots Evolved 16 | . . . . . 8 2 2 . . . . 2 . 2 Power 1 | . . . . . 1 . . . . . . . . . Propulsion 2 | . . . . . 2 . . . . . . . . . Utility 13 | . . . . . 5 2 2 . . . . 2 . 2 Weapon . | . . . . . . . . . . . . . . . Parts Attached 164 | 2 . 1 1 1 38 30 2 10 . 11 2 3 5 58 Power 21 | . . . . . 2 5 . 2 . 1 . . . 11 Engine 6 | . . . . . 2 2 . 2 . . . . . . Core 3 | . . . . . . 3 . . . . . . . . Reactor 12 | . . . . . . . . . . 1 . . . 11 Propulsion 48 | 2 . . . . 12 11 1 2 . 1 1 1 4 13 Treads 7 | 2 . . . . 2 . . 1 . . . . . 2 Leg 14 | . . . . . 1 11 . . . 1 . . 1 . Wheel 22 | . . . . . 7 . 1 1 . . 1 1 3 8 Hover 2 | . . . . . 1 . . . . . . . . 1 Flight 3 | . . . . . 1 . . . . . . . . 2 Utility 73 | . . 1 . 1 16 11 1 6 . 6 . 2 . 29 Device 33 | . . . . . 6 3 1 3 . 2 . 1 . 17 Storage 6 | . . . . . 2 1 . 1 . . . 1 . 1 Processor 21 | . . . . 1 7 5 . 1 . 1 . . . 6 Hackware 3 | . . . . . 1 . . . . 1 . . . 1 Protection 10 | . . 1 . . . 2 . 1 . 2 . . . 4 Artifact . | . . . . . . . . . . . . . . . Weapon 22 | . . . 1 . 8 3 . . . 3 1 . 1 5 Energy Gun 2 | . . . . . . 2 . . . . . . . . Energy Cannon 4 | . . . . . 1 . . . . 1 . . . 2 Ballistic Gun 2 | . . . . . . . . . . . . . . 2 Ballistic Cannon 1 | . . . . . . . . . . . . . . 1 Launcher 5 | . . . 1 . 1 . . . . 2 1 . . . Special Weapon . | . . . . . . . . . . . . . . . Impact Weapon 4 | . . . . . 3 1 . . . . . . . . Slashing Weapon 4 | . . . . . 3 . . . . . . . 1 . Piercing Weapon . | . . . . . . . . . . . . . . . Special Melee Weapon . | . . . . . . . . . . . . . . . Unidentified Prototypes 18 | . . . . . 3 3 1 . . 6 . 1 . 4 Parts Lost 89 | . . . . . 13 20 1 . . . 1 . 15 39 Power 13 | . . . . . 1 1 1 . . . . . 1 9 Propulsion 37 | . . . . . 6 12 . . . . 1 . 5 13 Utility 31 | . . . . . 5 5 . . . . . . 7 14 Weapon 8 | . . . . . 1 2 . . . . . . 2 3 Highest Loss Streak 29 | . . . . . 8 4 1 . . . 1 . 15 29 To Critical Strikes 2 | . . . . . . 1 . . . . . . . 1 Average Backups 7 | . . 1 3 4 5 6 5 8 10 9 8 8 8 11 Power . | . . . . . . 1 1 . 1 . . . . . Propulsion 1 | . . . . . . 1 . 2 3 2 2 2 2 3 Utility 2 | . . 1 2 2 2 . 1 1 2 2 3 3 3 5 Weapon 2 | . . . . 1 1 3 3 3 4 3 2 3 2 2 Tool/Special . | . . . . . . . . . . . . . . . Unused Backups 26 | . . . . 2 11 . . . . 7 . . . 6 Power 4 | . . . . 1 1 . . . . 1 . . . 1 Propulsion 5 | . . . . 1 . . . . . 1 . . . 3 Utility 11 | . . . . . 7 . . . . 2 . . . 2 Weapon 6 | . . . . . 3 . . . . 3 . . . . Tool/Special . | . . . . . . . . . . . . . . . Average Slot Usage (%) 78 | . 28 37 43 45 69 89 67 90 94 91 88 88 75 78 Engine 3 | . . . . . 1 6 . 9 10 5 . . . . Reactor 1 | . . . . . . . . . . 2 5 4 3 6 Treads 6 | . 28 28 28 28 8 1 . 4 5 5 5 4 3 . Leg 3 | . . . . . 1 15 10 1 . . . . . 4 Wheel 6 | . . . . . 6 2 4 9 10 9 9 9 8 8 Device 10 | . . . . . 4 10 5 13 15 10 15 17 14 17 Storage 4 | . . . . . 3 4 5 7 5 5 5 8 8 3 Processor 23 | . . . . 3 28 28 21 25 26 28 26 23 21 24 Hackware 1 | . . . . . 1 . . . . 1 5 4 3 . Protection 5 | . . 9 14 14 . . 5 6 10 9 5 4 2 5 Impact Weapon 3 | . . . . . 6 1 5 5 5 4 4 4 . . Slashing Weapon 3 | . . . . . 2 6 5 5 5 4 4 4 2 . Peak Build Rating 164 | 2 2 3 5 12 62 78 60 88 86 115 122 123 124 164 Average Rating 76 | 1 2 2 3 5 42 68 52 81 86 96 113 121 108 127 On Entrance 50 | . 2 2 3 3 12 61 45 54 86 86 113 113 123 57 Avg Prop Armor Cover (%) 18 | 41 41 32 27 27 21 13 16 15 13 12 14 14 13 9 Naked Turns . | . . . . . . . . . . . . . . . Heaviest Build 166 | . . 3 3 3 56 54 34 57 57 90 79 83 83 166 Greatest Support 66 | 3 3 3 3 3 30 66 16 26 26 26 26 26 60 52 Greatest Overweight (x) 15 | . . . . . 5 15 2 2 2 5 3 3 7 8 Average Overweight (x) 1 | . . . . . . . 1 1 2 2 2 3 2 1 Largest Inventory Capacity 25 | 5 5 5 5 5 20 10 10 10 10 10 10 10 10 25 Average Capacity 10 | 5 5 5 5 5 11 9 10 10 10 10 10 10 9 14 Most Carried 25 | . . 3 5 5 17 10 6 10 10 10 10 10 10 25 Average Carried 7 | . . 1 3 4 5 6 5 8 10 9 9 9 8 11 Final Capacity 10 | 5 5 5 5 5 5 10 10 10 10 10 10 10 5 5 Final Carried 10 | . . 3 5 5 5 7 5 10 10 10 9 10 5 5 Scrap Suit Usage (%) 6 | . . . . . 14 32 . . . . . . . . Parts Cannibalized 1 | . . . . . . 1 . . . . . . . . Class Distribution -------------------- 22% | Derelict-Gladiator 19% | Mutant 14% | Trapper-Gladiator 8% | Gladiator 7% | Scavenger-Assassin 7% | Trapper-Mutant 6% | Scavenger-Mutant 5% | Assassin Dominant Class ---------------- Mutant | -10/Materials Mutant | -10/Mines Mutant | -10/Subcaves Mutant | -8/Scraptown Mutant | -6/Factory Scavenger-Assassin | -5/Factory Gladiator | -4/Factory Derelict-Gladiator | -4/Upper Caves Derelict-Gladiator | -4/Upper Caves Derelict-Gladiator | -4/Warlord Trapper-Gladiator | -3/Proximity Caves Trapper-Gladiator | -3/Research Trapper-Gladiator | -3/DSF Trapper-Mutant | -2/Research Resources | -11 -10 -10 -10 -8 -6 -5 -4 -4 -4 -4 -3 -3 -3 -2 ----------- Run | Yrd Mat Min Sub Scr Fac Fac Fac Upp Upp War Pro Res DSF Res Matter Collected 3026 | 111 . 59 . . 797 275 . 160 . 62 163 13 19 1367 Remotely . | . . . . . . . . . . . . . . . Salvage Created 5329 | . . . 104 . 1084 935 . 84 . . 97 13 479 2533 Parts 192 | . . . 10 . 20 40 . 5 . . 5 4 10 98 Haulers Intercepted 2 | . . . . . 1 1 . . . . . . . . Recyclers Shooed 8 | . . . . . . 2 . . . . . 1 . 5 Parts Field Recycled . | . . . . . . . . . . . . . . . Retrieved Matter . | . . . . . . . . . . . . . . . Parts Self-Destructed 15 | . . . 3 . . . . 10 . . 2 . . . Prevented 3 | . . . . . . . . 2 . . 1 . . . Parts Restored 1 | . . . . . . . . . . . . . . 1 Broken 1 | . . . . . . . . . . . . . . 1 Kills | -11 -10 -10 -10 -8 -6 -5 -4 -4 -4 -4 -3 -3 -3 -2 ------- Run | Yrd Mat Min Sub Scr Fac Fac Fac Upp Upp War Pro Res DSF Res Combat Hostiles Destroyed 62 | . . . 6 . 3 14 . . . . 6 . 7 26 Melee 12 | . . . . . 2 9 . . . . 1 . . . Cannons 15 | . . . . . . . . . . . . . . 15 AOE 29 | . . . 6 . 1 5 . . . . 5 . 7 5 Classes Destroyed 15 | . . . 2 . 8 3 . 1 . . . . 1 . Worker 9 | . . . . . 6 . . . . . . 1 . 2 Builder 6 | . . . . . 2 . . . . . . . . 4 Tunneler 1 | . . . . . 1 . . . . . . . . . Hauler 2 | . . . . . 1 1 . . . . . . . . Recycler 11 | . . . . . 5 1 . . . . . . . 5 Minesweeper 2 | . . . . . . . . 2 . . . . . . Mechanic 1 | . . . . . 1 . . . . . . . . . Operator 1 | . . . . . . 1 . . . . . . . . Swarmer 20 | . . . 3 . 1 4 . . . . 5 . 4 3 Grunt 16 | . . . . . 1 7 . . . . . . . 8 Sentry 7 | . . . . . . 2 . . . . 1 . . 4 Specialist 3 | . . . . . . . . . . . . . 3 . Hunter 3 | . . . . . . 1 . . . . . . . 2 Programmer 10 | . . . . . 1 . . . . . . . . 9 Subdweller 3 | . . . 3 . . . . . . . . . . . Decomposer 1 | . . . . . . . . 1 . . . . . . Best Kill Streak 17 | . . . 3 . 3 6 . 1 . . 5 1 7 17 Combat Bots Only 12 | . . . 3 . 1 6 . . . . 5 . 7 12 Max Kills in Single Turn 5 | . . . 1 . 1 5 . 1 . . 3 1 4 2 Gunslinging . | . . . . . . . . . . . . . . . Exploded 5 | . . . 1 . 1 5 . . . . 3 . 4 1 Melee 1 | . . . . . 1 1 . . . . 1 . . . Uniques/NPCs Destroyed . | . . . . . . . . . . . . . . . Combat | -11 -10 -10 -10 -8 -6 -5 -4 -4 -4 -4 -3 -3 -3 -2 -------- Run | Yrd Mat Min Sub Scr Fac Fac Fac Upp Upp War Pro Res DSF Res Hostile Shots Fired 1182 | . 16 . 12 . 254 264 7 20 . . 43 . 128 438 Missed 412 | . 8 . 6 . 108 94 1 12 . . 12 . 42 129 Hits 770 | . 8 . 6 . 146 170 6 8 . . 31 . 86 309 Melee 5 | . . . . . . 5 . . . . . . . . Projectile 765 | . 8 . 6 . 146 165 6 8 . . 31 . 86 309 AOE 3 | . . . . . . . . . . 3 . . . . Critical Strikes 35 | . . . . . 3 13 . . . . . . 2 17 Part Disruptions 1 | . . . . . . . . . . . . . . 1 Damage Taken 15505 | . 115 . 48 . 1931 3670 88 179 . 128 390 . 2477 6479 Core 3531 | . 18 . 10 . 626 589 14 48 . 26 . . 744 1456 Absorbed by Shields 1219 | . . . . . 20 . . . . 26 326 . 355 492 Regen/Repaired (Parts) 160 | . . . . . . 10 . . . 150 . . . . Core Remaining (%) 64 | 100 . . . 88 26 41 . . . . 92 . 42 . Volleys Fired 178 | . . . 7 . 2 . . . . 1 5 . 11 152 Largest 2 | . . . 1 . 1 . . . . 1 1 . 1 2 Hottest 260 | . . . 33 . 39 . . . . 260 20 . 260 260 Shots Fired 181 | . . . 7 . 2 . . . . 1 5 . 11 155 Gun 6 | . . . . . . . . . . . . . . 6 Cannon 140 | . . . . . . . . . . . . . . 140 Launcher 35 | . . . 7 . 2 . . . . 1 5 . 11 9 Special . | . . . . . . . . . . . . . . . Kinetic 9 | . . . . . . . . . . . . . . 9 Thermal 154 | . . . . . . . . . . 1 . . 7 146 Explosive 7 | . . . 7 . . . . . . . . . . . Electromagnetic 2 | . . . . . 2 . . . . . . . . . Entropic 9 | . . . . . . . . . . . 5 . 4 . Robot Hit Streak 11 | . . . 4 . 5 . . . . . 1 . 3 11 Robot Miss Streak 4 | . . . 3 . . . . . . . 4 . 1 4 Penetration Max . | . . . . . . . . . . . . . . . Secondary Targets . | . . . . . . . . . . . . . . . Capacitor 136 | . . . . . . . . . . . . . . 136 Shots Hit Robots 221 | . . . 4 . 36 50 . 8 . . 18 2 3 100 Core Hits 130 | . . . 10 . 9 33 . 3 . . 8 1 10 56 Critical Kills 8 | . . . . . 1 . . . . . . . . 7 Critical Parts Destroyed 7 | . . . . . 6 . . . . . 1 . . . Critical Strikes 24 | . . . . . 7 8 . . . . 2 . . 7 Meltdown 7 | . . . . . . . . . . . . . . 7 Smash 8 | . . . . . 7 . . . . . 1 . . . Sever 9 | . . . . . . 8 . . . . 1 . . . Melee Attacks 173 | . . . . . 62 66 . 14 3 . 20 7 1 . Impact 64 | . . . . . 57 . . 3 1 . 3 . . . Slashing 109 | . . . . . 5 66 . 11 2 . 17 7 1 . Piercing . | . . . . . . . . . . . . . . . Sneak Attacks 29 | . . . . . 16 5 . 6 . . . 2 . . Combat Hostiles . | . . . . . . . . . . . . . . . Follow-up Attacks 7 | . . . . . 3 1 . 1 . . 2 . . . Damage Inflicted 14966 | . . . 394 . 2335 2490 . 505 . . 1445 128 1994 5675 Guns 60 | . . . . . . . . . . . . . . 60 Cannons 3885 | . . . . . . . . . . . . . . 3885 Explosions 5801 | . . . 394 . 106 693 . . . . 886 . 1994 1728 Melee 5189 | . . . . . 2229 1768 . 505 . . 559 128 . . Ramming 31 | . . . . . . 29 . . . . . . . 2 Kinetic 188 | . . . . . . . . . . . . . . 188 Thermal 5825 | . . . . . . . . . . . . . 340 5485 Explosive 1087 | . . . 394 . . 693 . . . . . . . . Electromagnetic 106 | . . . . . 106 . . . . . . . . . Impact 2327 | . . . . . 2131 . . 118 . . 78 . . . Slashing 2862 | . . . . . 98 1768 . 387 . . 481 128 . . Piercing . | . . . . . . . . . . . . . . . Entropic 2540 | . . . . . . . . . . . 886 . 1654 . Highest Corruption 9 | . . . . . . 6 . . . . . . 5 9 Average Corruption 5 | . . . . . . 3 . . . . . . 4 6 Corruption Purged . | . . . . . . . . . . . . . . . Corruption Blocked . | . . . . . . . . . . . . . . . Effects 20 | . . . . . . 1 . . . . . . 1 18 Message Errors 4 | . . . . . . . . . . . . . 1 3 Matter Fused 8 | . . . . . . . . . . . . . . 8 Heat Flow Errors 1 | . . . . . . . . . . . . . . 1 Energy Discharges 3 | . . . . . . . . . . . . . . 3 Data Loss (minor) 2 | . . . . . . 1 . . . . . . . 1 Misfires 1 | . . . . . . . . . . . . . . 1 Weapon Failures 1 | . . . . . . . . . . . . . . 1 Overload Shots . | . . . . . . . . . . . . . . . Overflow Damage 1560 | . . . . . 869 183 . 181 . . 38 34 . 255 Projectiles 151 | . . . . . . . . . . . . . . 151 Explosions 214 | . . . . . . 110 . . . . . . . 104 Melee 1195 | . . . . . 869 73 . 181 . . 38 34 . . Knockbacks 11 | . . . . . 10 1 . . . . . . . . Impact 11 | . . . . . 10 1 . . . . . . . . Kinetic . | . . . . . . . . . . . . . . . Secondary . | . . . . . . . . . . . . . . . Self-Inflicted Damage 195 | . . . 1 . . 193 . . . . . . . 1 Shots 3 | . . . 1 . . 2 . . . . . . . . Rammed 1 | . . . . . . . . . . . . . . 1 Targets Rammed 4 | . . . . . . 3 . . . . . . . 1 Kicked 3 | . . . . . . 3 . . . . . . . . Crushed . | . . . . . . . . . . . . . . . Highest Temperature 1052 | . . . . . 10 197 387 . . 194 . . 1052 219 Average Temperature 157 | . . . . . 10 57 336 . . 109 . . 546 120 Received Heat Transfer 2183 | . 60 . . . 519 1156 . 27 . . 32 . . 389 Effects 10 | . . . . . . . . . . . . . 10 . Interference 3 | . . . . . . . . . . . . . 3 . Matter Decay 3 | . . . . . . . . . . . . . 3 . Short Circuit 2 | . . . . . . . . . . . . . 2 . Damage (minor) 1 | . . . . . . . . . . . . . 1 . Damage (core) 1 | . . . . . . . . . . . . . 1 . Siege Activations . | . . . . . . . . . . . . . . . Martial Activations . | . . . . . . . . . . . . . . . Shielding Activations . | . . . . . . . . . . . . . . . Robots Disrupted . | . . . . . . . . . . . . . . . Combat Hostiles . | . . . . . . . . . . . . . . . Robots Corrupted 9 | . . . . . 9 . . . . . . . . . Combat Hostiles . | . . . . . . . . . . . . . . . Parts Fried 21 | . . . . . 20 . . 1 . . . . . . Impact Corruptions 33 | . . . . . 31 . . 1 . . 1 . . . Robots Melted 7 | . . . . . . . . . . . . . . 7 Combat Hostiles 6 | . . . . . . . . . . . . . . 6 Parts Melted 26 | . . . . . . 1 . . . . . . . 25 Heat Transferred 6376 | . . . . . . . . . . . . . 400 5976 Parts Sabotaged . | . . . . . . . . . . . . . . . Parts Stolen . | . . . . . . . . . . . . . . . Parts Stripped . | . . . . . . . . . . . . . . . Power Chain Reactions 1 | . . . . . . 1 . . . . . . . . Alert | -11 -10 -10 -10 -8 -6 -5 -4 -4 -4 -4 -3 -3 -3 -2 ------- Run | Yrd Mat Min Sub Scr Fac Fac Fac Upp Upp War Pro Res DSF Res Maximum Alert Level 3 | . . . . . 2 3 2 . . . . . 1 2 Low Security (%) 58 | 100 100 100 . . 43 44 . . . . . 100 70 74 Level 1 15 | . . . . . 18 28 . . . . . . 29 5 Level 2 21 | . . . . . 37 8 100 . . . . . . 19 Level 3 3 | . . . . . . 18 . . . . . . . . Level 4 . | . . . . . . . . . . . . . . . Level 5 . | . . . . . . . . . . . . . . . High Security . | . . . . . . . . . . . . . . . Max Security . | . . . . . . . . . . . . . . . Peak Influence 1088 | . . . . . 569 1088 464 . . . . 11 300 507 Initial 464 | . . . . . . 223 464 . . . . . 3 130 Average 224 | . . . . . 259 377 454 . . . . 1 81 161 Influence Increases 4450 | . . . 70 . 1204 1399 . 70 . . 145 18 345 1199 Destroy 0b10 Robot/C 1340 | . . . 60 . 80 420 . . . . 120 . 140 520 Destroy 0b10 Robot/NC 175 | . . . . . 80 15 . 10 . . . 5 10 55 Destroy Leader 254 | . . . 10 . 12 82 . . . . 10 . 20 120 Allied During Kill 82 | . . . . . 9 73 . . . . . . . . Successful Hack 11 | . . . . . 8 . . . . . . 3 . . Select Force Hacks 50 | . . . . . . 50 . . . . . . . . Disable Machine 150 | . . . . . 75 45 . . . . . . 15 15 Anti-Garrison Action 600 | . . . . . 400 200 . . . . . . . . Destroy Structure 498 | . . . . . 15 154 . . . . . 10 160 159 Partial Spotted 15 | . . . . . 15 . . . . . . . . . Lose Combat Pursuer 1275 | . . . . . 510 360 . 60 . . 15 . . 330 Influence Decreases 3944 | . . . 50 20 747 908 514 504 . . 145 14 116 926 Entered New Map 1004 | . . . . 20 . 234 484 162 . . . . 1 103 Time Decay 1825 | . . . 50 . 457 374 20 342 . . 135 14 . 433 Search Patrol Dispatched 100 | . . . . . 100 . . . . . . . . . Lost Part 815 | . . . . . 90 200 10 . . . 10 . 115 390 Lost Ally 200 | . . . . . 100 100 . . . . . . . . Squads Dispatched 36 | . . . . . 16 11 . . . . . . 2 7 Investigation 15 | . . . . . 7 6 . . . . . . . 2 Extermination 8 | . . . . . 3 1 . . . . . . . 4 Reinforcement 11 | . . . . . 5 3 . . . . . . 2 1 Assault . | . . . . . . . . . . . . . . . Garrison 2 | . . . . . 1 1 . . . . . . . . Intercept . | . . . . . . . . . . . . . . . Searches Triggered 1 | . . . . . 1 . . . . . . . . . Construction Impeded 3 | . . . . . 2 . . . . . . . . 1 Haulers Reinforced 1 | . . . . . 1 . . . . . . . . . Active Scanning Responses . | . . . . . . . . . . . . . . . Cargo Convoy Interrupts . | . . . . . . . . . . . . . . . Stealth | -11 -10 -10 -10 -8 -6 -5 -4 -4 -4 -4 -3 -3 -3 -2 --------- Run | Yrd Mat Min Sub Scr Fac Fac Fac Upp Upp War Pro Res DSF Res Distress Signals 6 | . . . . . 1 . . . . 2 . . . 3 Communications Jammed . | . . . . . . . . . . . . . . . Distress Signals . | . . . . . . . . . . . . . . . Times Spotted 232 | . 6 . 5 . 40 55 4 6 . 26 9 . 13 68 Peak Tracking Total 14 | . 6 . 3 . 9 12 4 4 . 9 5 . 7 14 Tactical Retreats 36 | . . . . . 14 6 . 2 . . 1 . 4 9 ECM-based Alert Blocks 5 | . . . . . . . . . . . . . 5 . Traps | -11 -10 -10 -10 -8 -6 -5 -4 -4 -4 -4 -3 -3 -3 -2 ------- Run | Yrd Mat Min Sub Scr Fac Fac Fac Upp Upp War Pro Res DSF Res Traps Triggered 7 | . . . . . 2 2 . . . . . . 1 2 Indirectly . | . . . . . . . . . . . . . . . Trap Hack Attempts . | . . . . . . . . . . . . . . . Triggered . | . . . . . . . . . . . . . . . Disarmed . | . . . . . . . . . . . . . . . Reprogrammed . | . . . . . . . . . . . . . . . Reused . | . . . . . . . . . . . . . . . Traps Extracted . | . . . . . . . . . . . . . . . Installed 4 | . . . . . . . . 4 . . . . . . Triggered . | . . . . . . . . . . . . . . . Most Traps Carried 8 | . . . . . . . . 8 8 8 8 8 8 8 Machines | -11 -10 -10 -10 -8 -6 -5 -4 -4 -4 -4 -3 -3 -3 -2 ---------- Run | Yrd Mat Min Sub Scr Fac Fac Fac Upp Upp War Pro Res DSF Res Machines Disabled 11 | . . . . . 5 3 . . . 1 . . 1 1 Max in Single Turn 2 | . . . . . 1 2 . . . 1 . . 1 1 Garrison Access 3 | . . . . . 2 1 . . . . . . . . Machines Repaired . | . . . . . . . . . . . . . . . Machines Dismantled . | . . . . . . . . . . . . . . . Machines Sabotaged . | . . . . . . . . . . . . . . . Overloaded Fab Kills 3 | . . . . . . 3 . . . . . . . . Hacking | -11 -10 -10 -10 -8 -6 -5 -4 -4 -4 -4 -3 -3 -3 -2 --------- Run | Yrd Mat Min Sub Scr Fac Fac Fac Upp Upp War Pro Res DSF Res Machines Accessed 17 | . . . . . 8 5 . . . 1 . 1 . 2 Terminals 2 | . . . . . . . . . . . . 1 . 1 Fabricators 1 | . . . . . . 1 . . . . . . . . Repair Stations 1 | . . . . . 1 . . . . . . . . . Recycling Units 8 | . . . . . 4 3 . . . . . . . 1 Scanalyzers 1 | . . . . . 1 . . . . . . . . . Garrison Access 3 | . . . . . 2 1 . . . . . . . . Total Hacks 26 | . . . . . 13 7 . . . 1 . 1 . 4 Successful 15 | . . . . . 8 5 . . . 1 . 1 . . Failed 11 | . . . . . 5 2 . . . . . . . 4 Catastrophic 4 | . . . . . 1 . . . . . . . . 3 Database Lockouts . | . . . . . . . . . . . . . . . Manual 22 | . . . . . 11 7 . . . . . . . 4 Terminals 3 | . . . . . . . . . . . . 1 . 2 Fabricators 2 | . . . . . . 2 . . . . . . . . Repair Stations 1 | . . . . . 1 . . . . . . . . . Recycling Units 13 | . . . . . 7 4 . . . . . . . 2 Scanalyzers 2 | . . . . . 2 . . . . . . . . . Garrison Access 4 | . . . . . 3 1 . . . . . . . . Terminal Hacks 2 | . . . . . . . . . . 1 . 1 . . Open Door 1 | . . . . . . . . . . 1 . . . . Open DSF 1 | . . . . . . . . . . . . 1 . . Fabricator Hacks . | . . . . . . . . . . . . . . . Repair Station Hacks . | . . . . . . . . . . . . . . . Recycling Unit Hacks . | . . . . . . . . . . . . . . . Scanalyzer 2 | . . . . . 2 . . . . . . . . . Retrieve Study 2 | . . . . . 2 . . . . . . . . . Garrison Access Hacks . | . . . . . . . . . . . . . . . Unauthorized Hacks 11 | . . . . . 6 5 . . . . . . . . Terminals . | . . . . . . . . . . . . . . . Fabricators 1 | . . . . . . 1 . . . . . . . . Overload 1 | . . . . . . 1 . . . . . . . . Repair Stations 1 | . . . . . 1 . . . . . . . . . Patch 1 | . . . . . 1 . . . . . . . . . Recycling Units 6 | . . . . . 3 3 . . . . . . . . Fedlink 4 | . . . . . 2 2 . . . . . . . . Scrapoids 2 | . . . . . 1 1 . . . . . . . . Scanalyzers . | . . . . . . . . . . . . . . . Garrison Access 3 | . . . . . 2 1 . . . . . . . . Jam 3 | . . . . . 2 1 . . . . . . . . Data Cores Recovered . | . . . . . . . . . . . . . . . Used . | . . . . . . . . . . . . . . . Hacking Detections 7 | . . . . . 4 1 . . . . . . . 2 Full Trace Events 3 | . . . . . 1 . . . . . . . . 2 Feedback Events . | . . . . . . . . . . . . . . . Feedback Blocked . | . . . . . . . . . . . . . . . Robot Schematics Acquired . | . . . . . . . . . . . . . . . Robots Built . | . . . . . . . . . . . . . . . Authchips . | . . . . . . . . . . . . . . . Time . | . . . . . . . . . . . . . . . Total Robot Build Rating . | . . . . . . . . . . . . . . . Part Schematics Acquired . | . . . . . . . . . . . . . . . Parts Built . | . . . . . . . . . . . . . . . Authchips . | . . . . . . . . . . . . . . . Time . | . . . . . . . . . . . . . . . Total Part Build Rating . | . . . . . . . . . . . . . . . Part Studies Acquired 2 | . . . . . 2 . . . . . . . . . Parts Repaired . | . . . . . . . . . . . . . . . Time . | . . . . . . . . . . . . . . . Parts Recycled . | . . . . . . . . . . . . . . . Recycled Matter . | . . . . . . . . . . . . . . . Retrieved Matter . | . . . . . . . . . . . . . . . Retrieved Components . | . . . . . . . . . . . . . . . Parts Scanalyzed . | . . . . . . . . . . . . . . . Part Schematics Acquired . | . . . . . . . . . . . . . . . Parts Damaged . | . . . . . . . . . . . . . . . Bothacking | -11 -10 -10 -10 -8 -6 -5 -4 -4 -4 -4 -3 -3 -3 -2 ------------ Run | Yrd Mat Min Sub Scr Fac Fac Fac Upp Upp War Pro Res DSF Res Used RIF Installer . | . . . . . . . . . . . . . . . Robots Hacked . | . . . . . . . . . . . . . . . Non-combat . | . . . . . . . . . . . . . . . Combat . | . . . . . . . . . . . . . . . Robot Hacks Applied . | . . . . . . . . . . . . . . . Relay Couplers Released . | . . . . . . . . . . . . . . . Fabnet Peak Effective % . | . . . . . . . . . . . . . . . Robots Rewired 2 | . . . . . . . . . . 2 . . . . Allies Hacked 2 | . . . . . . 1 . . . 1 . . . . Hacks Repelled . | . . . . . . . . . . . . . . . Allies | -11 -10 -10 -10 -8 -6 -5 -4 -4 -4 -4 -3 -3 -3 -2 -------- Run | Yrd Mat Min Sub Scr Fac Fac Fac Upp Upp War Pro Res DSF Res Total Allies 12 | . . . . . 5 5 . . . 2 . . . . Largest Group 5 | . . . . . 5 5 . . . 2 . . . . Highest-Rated Group 238 | . . . . . 146 238 . . . 99 . . . . Highest-Rated Ally 50 | . . . . . 31 50 . . . 50 . . . . Total Orders 1 | . . . . . . 1 . . . . . . . . EXPLORE 1 | . . . . . . 1 . . . . . . . . Ally Attacks 47 | . . . . . 7 36 . . . 4 . . . . Total Damage 1178 | . . . . . 117 961 . . . 100 . . . . Kills 9 | . . . . . 1 8 . . . . . . . . Allies Corrupted 1 | . . . . . . . . . . 1 . . . . Allies Melted . | . . . . . . . . . . . . . . . Intel | -11 -10 -10 -10 -8 -6 -5 -4 -4 -4 -4 -3 -3 -3 -2 ------- Run | Yrd Mat Min Sub Scr Fac Fac Fac Upp Upp War Pro Res DSF Res Active Infowar (turns) 6350 | . . . . . 1445 867 56 764 306 1099 409 119 158 1127 Optics 4365 | . . . . . 636 867 56 764 306 1099 409 119 109 . Sensors 402 | . . . . . 402 . . . . . . . . . Terrain 4275 | . . . . . 313 867 56 764 306 1049 409 119 135 257 Seismic 213 | . . . . . . . . . . . . . . 213 Decoding 2732 | . . . . . . . . . . 923 409 119 154 1127 Machine Analysis 1875 | . . . . . 1445 430 . . . . . . . . Triangulation 344 | . . . . . 68 276 . . . . . . . . ECM 255 | . . . . . . . . . . . . 97 158 . Robot Analysis Total . | . . . . . . . . . . . . . . . Derelict Logs Recovered 4 | . . 2 1 . . . . 1 . . . . . . Drone Launches 2 | . . . . . . 2 . . . . . . . . Drone Recoveries . | . . . . . . . . . . . . . . . Decoded 0b10 Intel 40 | . . . . . . . . . . . . 3 3 34 Traps 3 | . . . . . . . . . . . . 1 . 2 Emergency Access 1 | . . . . . . . . . . . . . . 1 Items 27 | . . . . . . . . . . . . 2 3 22 Machines 5 | . . . . . . . . . . . . . . 5 Patrols 1 | . . . . . . . . . . . . . . 1 Guards 3 | . . . . . . . . . . . . . . 3 Exploration | -11 -10 -10 -10 -8 -6 -5 -4 -4 -4 -4 -3 -3 -3 -2 ------------- Run | Yrd Mat Min Sub Scr Fac Fac Fac Upp Upp War Pro Res DSF Res Turns Passed 7140 | 12 21 308 195 238 1457 867 56 764 306 1099 409 119 162 1127 Spaces Moved 6068 | 18 41 504 227 466 1591 497 41 508 206 799 190 76 97 807 Core 1657 | 18 41 504 227 466 374 1 . . . . . . . 26 Treads . | . . . . . . . . . . . . . . . Legs 378 | . . . . . 21 356 . . . . . . 1 . Wheels 3227 | . . . . . 667 140 41 508 206 799 190 76 96 504 Hover 85 | . . . . . 1 . . . . . . . . 84 Flight 721 | . . . . . 528 . . . . . . . . 193 Fastest Speed 37 | 50 50 50 50 50 40 80 115 100 115 100 115 130 85 37 Average Speed 89 | 50 50 50 50 50 71 118 129 112 115 120 129 130 126 94 Slowest Speed 800 | 50 50 50 50 50 290 800 130 130 115 175 130 130 175 250 Overloaded Moves . | . . . . . . . . . . . . . . . Propulsion Burnouts . | . . . . . . . . . . . . . . . Robots Hopped 6 | . . . . . 2 . . . . . . . . 4 Potential Cave-ins . | . . . . . . . . . . . . . . . Cave-ins Triggered . | . . . . . . . . . . . . . . . Exploration Rate (%) 38 | 3 14 94 21 40 43 19 1 53 37 87 49 2 93 21 Regions Visited 14 Branch Regions 7 Pre-discovered Areas 3 | . . . 1 . 1 . . 1 . . . . . . Known Exits Taken 1 | . . . . . . . . . . . . 1 . . Unknown Exits Taken 12 | 1 1 1 1 1 1 1 1 1 1 1 1 . . . Scrap Searched 3 | . . 1 . . . . . 1 . . 1 . . . Spaces Dug 86 | . . . . . 16 11 . 4 2 . 2 5 39 7 Terrain Destroyed 470 | . . . 51 . 16 77 . 4 2 . 158 5 100 57 Melee 41 | . . . . . 16 11 . 4 2 . 2 5 1 . Projectile 46 | . . . . . . . . . . . . . . 46 AOE 383 | . . . 51 . . 66 . . . . 156 . 99 11 Terrain Rammed . | . . . . . . . . . . . . . . . Walls Destroyed . | . . . . . . . . . . . . . . . Machines Disabled . | . . . . . . . . . . . . . . . Actions | -11 -10 -10 -10 -8 -6 -5 -4 -4 -4 -4 -3 -3 -3 -2 --------- Run | Yrd Mat Min Sub Scr Fac Fac Fac Upp Upp War Pro Res DSF Res Total 7482 | 19 40 558 302 470 1803 675 43 681 272 942 321 87 123 1146 Wait 651 | . . 51 61 . 52 56 . 134 65 77 101 . 3 51 Move 6042 | 17 40 503 226 465 1586 496 40 507 205 798 189 75 96 799 Hop 6 | . . . . . 2 . . . . . . . . 4 Pick Up 91 | . . 3 2 2 22 8 . 7 . 11 . 1 1 34 Fast Attach 109 | 2 . 1 . 1 27 22 1 8 . 13 2 2 3 27 Attach 61 | . . . 3 . 10 8 2 1 . 2 3 . 5 27 Detach 14 | . . . 3 . 4 2 . . . . 2 . . 3 Swap 29 | . . . . . 7 2 . 4 . 3 . 1 . 12 Drop 91 | . . . . 2 19 13 . 5 . 26 2 1 3 20 Fire 178 | . . . 7 . 2 . . . . 1 5 . 11 152 Melee 160 | . . . . . 57 65 . 11 2 . 17 7 1 . Ram 1 | . . . . . . . . . . . . . . 1 Kick 3 | . . . . . . 3 . . . . . . . . Crush . | . . . . . . . . . . . . . . . Escape Stasis 31 | . . . . . 15 . . . . . . . . 16 Rewire 11 | . . . . . . . . . . 11 . . . . Trap 4 | . . . . . . . . 4 . . . . . . Miscellaneous . | . . . . . . . . . . . . . . . Route ------- -11/Scrapyard -10/Materials -10/Mines (discovered 4 exits: [*Mat x2] / [*Exi] / [*Sub]) -10/Subcaves -8/Scraptown -6/Factory (discovered 3 exits: *Fac / *Low x2) -5/Factory -4/Factory -4/Upper Caves -4/Upper Caves -4/Warlord -3/Proximity Caves -3/Research -3/DSF -2/Research History --------- Turn | Location | Event 4 | -11/Scrapyard | Discovered new exit (range 16) 13 | -11/Scrapyard | Entered Materials 31 | -10/Materials | Discovered new exit (range 7) 34 | -10/Materials | Entered Mines 37 | -10/Mines | Discovered new exit (range 16) 81 | -10/Mines | Met a Derelict bent on vengeance 157 | -10/Mines | Learned Materials trap positions 181 | -10/Mines | Deemed a non-threat by the Exiles lab entrance 182 | -10/Mines | Discovered new exit (range 5) 230 | -10/Mines | Learned 2 Materials zone layouts 245 | -10/Mines | Discovered new exit (range 7) 287 | -10/Mines | Received a Rocket Launcher from a helpful Derelict 310 | -10/Mines | Build established: Mutant 336 | -10/Mines | Discovered new exit (range 5) 342 | -10/Mines | Entered Subcaves 343 | -10/Subcaves | Approached by a straggling Scientist 452 | -10/Subcaves | Learned location of Storage (-8) 533 | -10/Subcaves | Scientist uncovered a shortcut to Scraptown 537 | -10/Subcaves | Entered Scraptown 569 | -8/Scraptown | Visited Spacefarers 576 | -8/Scraptown | Visited Supply Room 600 | -8/Scraptown | Visited UFD Registry 600 | -8/Scraptown | Registered with UFD as "Alphalauncher" 616 | -8/Scraptown | Visited Chapter 10 625 | -8/Scraptown | Visited Curators Association 677 | -8/Scraptown | Visited Research Penetration Think Tank 688 | -8/Scraptown | Visited Junk Repository 708 | -8/Scraptown | Visited Infowarlord's Domain 711 | -8/Scraptown | Found Exp. Terrain Scan Processor 745 | -8/Scraptown | Met Optimus 745 | -8/Scraptown | Accepted into 0bPrime 773 | -8/Scraptown | Discovered new exit (range 3) 775 | -8/Scraptown | Entered Factory 775 | -6/Factory | Evolved 8 slots: Power x1, Propulsion x2, Utility x5 810 | -6/Factory | Garrison activated, responded to threat 967 | -6/Factory | Lost 4 parts (1p2n1u) 1366 | -6/Factory | Build established: Gladiator 1471 | -6/Factory | Spotted B-75 Beast 1507 | -6/Factory | Lost 8 parts (4n3u1w) 1507 | -6/Factory | Loaded intel: 8 recycling unit locations 1627 | -6/Factory | Found Prototype Processor 1627 | -6/Factory | Identified Exp. Targeting Computer 1631 | -6/Factory | Discovered new exit (range 12) 1647 | -6/Factory | Identified exit to Lower Caves 1693 | -6/Factory | Discovered exit to Lower Caves (range 20) 1761 | -6/Factory | Build established: Mutant 1773 | -6/Factory | Core integrity fell below 50% 1916 | -6/Factory | Learned location of Protoforge (-2) 1917 | -6/Factory | Scrapoids reinforcements arrived? 2013 | -6/Factory | Found Scrap Suit 2035 | -6/Factory | Lost 5 allies 2175 | -6/Factory | Search patrols dispatched 2201 | -6/Factory | Discovered new exit (range 11) 2232 | -6/Factory | Entered another Factory area 2232 | -5/Factory | Evolved 2 slots: Utility x2 2306 | -5/Factory | Spotted B-75 Beast 2443 | -5/Factory | Lost 4 parts (2n1u1w) 2522 | -5/Factory | Loaded intel: 8 recycling unit locations 2610 | -5/Factory | Garrison activated, responded to threat 2820 | -5/Factory | Lost 3 parts (1n1u1w) 2972 | -5/Factory | Scrapoids reinforcements arrived? 3055 | -5/Factory | Core integrity fell below 50% 3056 | -5/Factory | Discovered new exit (range 18) 3057 | -5/Factory | Lost 5 allies 3080 | -5/Factory | Lost 4 parts (2n2u) 3099 | -5/Factory | Entered another Factory area 3099 | -4/Factory | Evolved 2 slots: Utility x2 3120 | -4/Factory | Discovered new exit (range 21) 3155 | -4/Factory | Entered Upper Caves 3257 | -4/Upper Caves | Found DCF Scrap (13 items) 3329 | -4/Upper Caves | Encountered a Warlord checkpoint 3557 | -4/Upper Caves | Build established: Derelict-Gladiator 3607 | -4/Upper Caves | Lost 3 allies 3900 | -4/Upper Caves | Discovered new exit (range 17) 3919 | -4/Upper Caves | Entered another Upper Caves area 4206 | -4/Upper Caves | Discovered new exit (range 17) 4225 | -4/Upper Caves | Entered Warlord 4418 | -4/Warlord | Rebuked by Warlord 4443 | -4/Warlord | Warlord's base attacked by MAIN.C 4698 | -4/Warlord | Found Prototype Launcher 4698 | -4/Warlord | Identified Vortex Catalyst Activator 4701 | -4/Warlord | Found Prototype Energy Cannon 4701 | -4/Warlord | Identified Vortex Cannon 4793 | -4/Warlord | Warlord forces counterattacked 4867 | -4/Warlord | Found Prototype Reactor 4867 | -4/Warlord | Identified Vortex Chain Reactor 4891 | -4/Warlord | Found Prototype Hackware 4891 | -4/Warlord | Identified System Mapper 4900 | -4/Warlord | Found Prototype Processor 5118 | -4/Warlord | Warlord base infiltrated, sounded retreat 5119 | -4/Warlord | Enhanced Grunt warped into view 5119 | -4/Warlord | Enhanced Grunt warped into view 5119 | -4/Warlord | Enhanced Grunt warped into view 5119 | -4/Warlord | Enhanced Demolisher warped into view 5119 | -4/Warlord | Enhanced Demolisher warped into view 5119 | -4/Warlord | Enhanced Demolisher warped into view 5123 | -4/Warlord | Spotted Striker 5212 | -4/Warlord | Spotted Striker 5254 | -4/Warlord | Spotted Executioner 5262 | -4/Warlord | Build established: Trapper-Gladiator 5288 | -4/Warlord | Discovered new exit (range 20) 5294 | -4/Warlord | Spotted Striker 5322 | -4/Warlord | Lost 3 allies 5324 | -4/Warlord | Entered Proximity Caves 5418 | -3/Proximity Caves | Spotted B-86 Titan 5525 | -3/Proximity Caves | Attracted the attention of an 0b10 checkpoint 5727 | -3/Proximity Caves | Discovered new exit (range 5) 5733 | -3/Proximity Caves | Entered Research 5733 | -3/Research | Evolved 2 slots: Utility x2 5852 | -3/Research | Identified exit to DSF 5852 | -3/Research | Entered DSF 5875 | -3/DSF | Additional patrols routed to DSF 5963 | -3/DSF | Discovered new exit (range 15) 6001 | -3/DSF | Core integrity fell below 50% 6006 | -3/DSF | Destroyed 7 combat bots 6014 | -3/DSF | Entered Research 6014 | -2/Research | Evolved 2 slots: Utility x2 6017 | -2/Research | Identified Exp. Armor Integrity Analyzer 6043 | -2/Research | Lost 15 parts (1p5n7u2w) 6272 | -2/Research | Found Quantum Capacitor 6293 | -2/Research | Build established: Trapper-Mutant 6391 | -2/Research | Found Prototype Device 6391 | -2/Research | Identified Adv. Kinecellerator 6689 | -2/Research | Lost 4 parts (2p1n1u) 6793 | -2/Research | Build established: Scavenger-Mutant 6943 | -2/Research | Destroyed 12 combat bots 6989 | -2/Research | Core integrity fell below 50% 7019 | -2/Research | Lost 29 parts (7p9n10u3w) 7096 | -2/Research | Core integrity fell below 20% 7115 | -2/Research | Lost 4 parts (2n2u) 7118 | -2/Research | Spotted B-90 Cyclops 7141 | -2/Research | Destroyed by H-88 Terminator with Heavy Machine Gun Last Messages --------------- 07062_ Slug penetrates Door. 07063_ System corrupted: Matter fused (-10). 07065_ R-10 Processor collects Matter Compressor. 07067_ Graviton Restrictor disabled. 07067_ Xenon Bombardment Thruster destroyed. 07073_ Dropped Adv. Transmission Jammer. 07074_ Acquired Centrium Leg. 07076_ Xenon Bombardment Thruster destroyed. 07077_ Imp. Phase Shifter destroyed. 07081_ System corrupted: Energy discharge (-18). 07084_ Structural Scanner destroyed. 07085_ >> DECODED: Patrol location. 07107_ >> DECODED: Adv. Target Analyzer location. 07112_ EXJ6FZSR& 1KHIHCDFLW/M8YFAWKRLV#S=W L 07124_ Slammed into W-44 Eye. 07127_ Antigrav Array destroyed. 07129_ Acquired System Shield. 07141_ Slug penetrates U-05 Engineer. Map ----- +----------------------------------------------------+ | ## """ #?????# +?? | | ## #?????+ #?? | | ##################+### ## #?????# #?? | | #????????????? # ## ! #?!???# #?? | | ##?????????? # ######+########## #?? | | #????????? # #?? | | ##???????# "F "" # #?? | | #??#????# """"" # +?? | | ##??????## """"" # #?? | | ##???????# # ########## #?? | | #??#?????# # #????????# """ #?? | | #??#?####?########## #????????# """ ### | | #?#?##????# + #????????# """ | | ##?##?#???# # #????????# | | # ? ???? + "" # #????????# | | ### ?#?#??#?# """ # #????????# | | ### ###?#???# """ # #????????############### | | ## ###????# """ # h #??????????????????????? | | % #####??# """ # #??????????????????????# | | ## #####??# # #??????????????????????# | | #######[#??## + #??????????????????????# | | [##?#??########## ###########????????????# | | # ############## # #????????????# | | % #### # # #????????????# | | ##?# ] # # #????????????# | | #### """ # @# #????????????# | | #### """ + u + #????????????# | | ########?# """ # # """ ######???????? | | ####??### # # """ / #???????? | | ###?##### + # """ #### #???????? | | #######?#########+####+################+########? | | #???##????#?????# # # #? | | # #?####?#??????# # # #? | | ### ###?###??????#! # # #? | | #??##?####???????# """ """ # # #? | | #####?#?###??????# """ """ # # #? | | #?#?###??#???????# """ """ # # ?? | | # ? ? #?????????#= """ """ # # ???? | | #????????????????# """ """ ##+####/#####+###### | | #???? ???????????# #????# % | | +?? ? ???????????# ## | | #? ?????????????# ## | | #??!?????????????# ## | | #????????????????############### | | #?????????????????????????????# | | ???????????????????????????? """"""" | | #??????????????????????????# """"""" " | | ???????????????????????????# """"""" " | | ######?????????????????????# T | | #?????????????????????# ???? | +----------------------------------------------------+ Best States ------------- Heat Dissipation 87 Coolant Potential 200 Energy Generation 55 Energy Capacity 700 Matter Stores 302 Matter Capacity 800 Sight Range 22 Robot Scan Range 15 Terrain Scan Range 20 Terrain Scan Density 1210 ECM Strength 1 Base Temperature (-) 200 EM Shielding 3 Armor Coverage 825 Resistance: KI 25 Melee Speed Boost 20 Evasion (%) 65 Targeting Accuracy 12 Melee Accuracy 32 Target Analysis 12 Armor Integrity Analysis 50 Recoil Reduction 2 Offensive Hacking 20 Defensive Hacking 10 Trap Extractor Capacity 8 Item Schematics ----------------- None Robot Schematics ------------------ None Fabricated ------------ Nothing Repaired ---------- Nothing Studied --------- Wheel | -6/Factory | Hacked Powered Hammer | -6/Factory | Hacked Alien Tech Used ----------------- None Achievements -------------- None Challenges ------------ None Game ------ Seed PowerHypercooledBay Manual? 0 Play Time 01:06:03 Cumulative 368.5 hours Start 2025.11.04 @ 11:58:02 End 2025.11.04 @ 13:06:31 Sessions 1 Manual Loads 0 Difficulty Rogue Special Mode None Game No. 329 Rogue 329 Adventurer 0 Explorer 0 Win Type - Total 2 Types 1/1/0/0/0/0/0/0/0/0 Lore% 83 Gallery% 82 Achievement% 59 Wizard Run 0 Options --------- Layout 1 ASCII 0 Keyboard 0 Movement Numpad Keybinds 0 Fullscreen 1 Font 24/Smallcaps Map View 50x35 Zoom Use 0% Tactical HUD 1 Map Filters NONE Filters NONE Steam 1 RUN: 6256d982-e6e8-4c4e-a24e-98aa78714d30